[Event "Live Chess"]
[Site "Chess.com"]
[Date "2010.12.06"]
[Round "-"]
[White "hipposcottimus"]
[Black "PrideandSorrow"]
[Result "0-1"]
[CurrentPosition "3r2k1/2p3pp/pb2p3/1pR1Pp2/8/P7/1P4PP/n2r1N1K b - -"]
[Timezone "UTC"]
[ECO "B01"]
[ECOUrl "https://www.chess.com/openings/Scandinavian-Defense-2.e5"]
[UTCDate "2010.12.06"]
[UTCTime "19:50:34"]
[WhiteElo "1593"]
[BlackElo "1723"]
[TimeControl "60"]
[Termination "PrideandSorrow won by resignation"]
[StartTime "19:50:34"]
[EndDate "2010.12.06"]
[EndTime "19:52:06"]
[Link "https://www.chess.com/game/live/74690174"]

1. e4 {[%clk 0:01:00]} 1... d5 {[%clk 0:01:00]} 2. e5 {[%clk 0:00:58.8]} 2... Bf5 {[%clk 0:00:58.3]} 3. d4 {[%clk 0:00:58.2]} 3... Qd7 {[%clk 0:00:57.6]} 4. c4 {[%clk 0:00:57.5]} 4... dxc4 {[%clk 0:00:56.3]} 5. Bxc4 {[%clk 0:00:56.7]} 5... e6 {[%clk 0:00:54.7]} 6. Nc3 {[%clk 0:00:56.3]} 6... Bb4 {[%clk 0:00:52.9]} 7. Ne2 {[%clk 0:00:54.2]} 7... Ne7 {[%clk 0:00:52.1]} 8. O-O {[%clk 0:00:52.3]} 8... O-O {[%clk 0:00:50.3]} 9. Bd2 {[%clk 0:00:51.2]} 9... a6 {[%clk 0:00:48.1]} 10. Ng3 {[%clk 0:00:50.2]} 10... Bg6 {[%clk 0:00:46.2]} 11. Bb3 {[%clk 0:00:49.7]} 11... b5 {[%clk 0:00:44.3]} 12. a3 {[%clk 0:00:49.2]} 12... Ba5 {[%clk 0:00:43.6]} 13. Nce2 {[%clk 0:00:47.4]} 13... Bb6 {[%clk 0:00:42.7]} 14. Bf4 {[%clk 0:00:46]} 14... Nbc6 {[%clk 0:00:41.4]} 15. Be3 {[%clk 0:00:44.9]} 15... Na5 {[%clk 0:00:40.6]} 16. f4 {[%clk 0:00:42.6]} 16... Nec6 {[%clk 0:00:38.2]} 17. Bc2 {[%clk 0:00:41]} 17... Rad8 {[%clk 0:00:37]} 18. Bxg6 {[%clk 0:00:40]} 18... fxg6 {[%clk 0:00:34.9]} 19. f5 {[%clk 0:00:39.8]} 19... gxf5 {[%clk 0:00:33.9]} 20. Bf4 {[%clk 0:00:39.6]} 20... Nc4 {[%clk 0:00:32.4]} 21. Qd3 {[%clk 0:00:38.3]} 21... Nxd4 {[%clk 0:00:31.3]} 22. Nxd4 {[%clk 0:00:36]} 22... Qxd4+ {[%clk 0:00:29.2]} 23. Qxd4 {[%clk 0:00:31.9]} 23... Rxd4 {[%clk 0:00:28.4]} 24. Kh1 {[%clk 0:00:29.7]} 24... Rfd8 {[%clk 0:00:25.5]} 25. Be3 {[%clk 0:00:28.8]} 25... Nxe3 {[%clk 0:00:22.5]} 26. Rfe1 {[%clk 0:00:28.5]} 26... Nc2 {[%clk 0:00:21]} 27. Rec1 {[%clk 0:00:27.2]} 27... Nxa1 {[%clk 0:00:19.6]} 28. Rc5 {[%clk 0:00:26.9]} 28... Rd1+ {[%clk 0:00:18.9]} 29. Nf1 {[%clk 0:00:24.2]} 0-1

[Event "Live Chess"]
[Site "Chess.com"]
[Date "2010.12.06"]
[Round "-"]
[White "PrideandSorrow"]
[Black "hipposcottimus"]
[Result "1-0"]
[CurrentPosition "1br5/p4pkp/2P3p1/8/5P2/6P1/B3RPKP/8 b - -"]
[Timezone "UTC"]
[ECO "A07"]
[ECOUrl "https://www.chess.com/openings/Kings-Indian-Attack-Keres-Variation"]
[UTCDate "2010.12.06"]
[UTCTime "19:47:57"]
[WhiteElo "1723"]
[BlackElo "1593"]
[TimeControl "60"]
[Termination "PrideandSorrow won on time"]
[StartTime "19:47:57"]
[EndDate "2010.12.06"]
[EndTime "19:50:11"]
[Link "https://www.chess.com/game/live/74689382"]

1. Nf3 {[%clk 0:01:00]} 1... d5 {[%clk 0:01:00]} 2. g3 {[%clk 0:00:59.4]} 2... Bg4 {[%clk 0:00:59.5]} 3. d3 {[%clk 0:00:59.4]} 3... Bxf3 {[%clk 0:00:57.3]} 4. exf3 {[%clk 0:00:58.6]} 4... e5 {[%clk 0:00:57]} 5. Bg2 {[%clk 0:00:57.9]} 5... c5 {[%clk 0:00:56]} 6. O-O {[%clk 0:00:57.5]} 6... Nf6 {[%clk 0:00:55.3]} 7. Re1 {[%clk 0:00:57.2]} 7... Nc6 {[%clk 0:00:55]} 8. Bg5 {[%clk 0:00:56.8]} 8... Be7 {[%clk 0:00:54.7]} 9. f4 {[%clk 0:00:56.2]} 9... e4 {[%clk 0:00:51.8]} 10. dxe4 {[%clk 0:00:55.3]} 10... dxe4 {[%clk 0:00:51.3]} 11. Bxf6 {[%clk 0:00:54.6]} 11... Bxf6 {[%clk 0:00:48.3]} 12. c3 {[%clk 0:00:54.6]} 12... Be7 {[%clk 0:00:47.8]} 13. Qxd8+ {[%clk 0:00:53]} 13... Rxd8 {[%clk 0:00:43.1]} 14. Bxe4 {[%clk 0:00:52.2]} 14... O-O {[%clk 0:00:42.2]} 15. Na3 {[%clk 0:00:51.5]} 15... Na5 {[%clk 0:00:36.6]} 16. Nc2 {[%clk 0:00:49.8]} 16... Bd6 {[%clk 0:00:35.8]} 17. Ne3 {[%clk 0:00:48.5]} 17... b6 {[%clk 0:00:33.2]} 18. Rad1 {[%clk 0:00:47.6]} 18... Bc7 {[%clk 0:00:28]} 19. Bf3 {[%clk 0:00:43.4]} 19... Bd6 {[%clk 0:00:26.4]} 20. Nf5 {[%clk 0:00:42]} 20... Bc7 {[%clk 0:00:22.9]} 21. Ne7+ {[%clk 0:00:41.3]} 21... Kh8 {[%clk 0:00:21.3]} 22. Re2 {[%clk 0:00:38]} 22... b5 {[%clk 0:00:20.9]} 23. Rxd8 {[%clk 0:00:36.5]} 23... Rxd8 {[%clk 0:00:19.3]} 24. Nf5 {[%clk 0:00:34.5]} 24... Bb8 {[%clk 0:00:18.1]} 25. b4 {[%clk 0:00:29.5]} 25... Nc4 {[%clk 0:00:16.2]} 26. bxc5 {[%clk 0:00:27.6]} 26... g6 {[%clk 0:00:15.8]} 27. Nh6 {[%clk 0:00:26.5]} 27... Kg7 {[%clk 0:00:15.1]} 28. Ng4 {[%clk 0:00:25.8]} 28... Bc7 {[%clk 0:00:13]} 29. Ne3 {[%clk 0:00:25]} 29... Ba5 {[%clk 0:00:12.1]} 30. Nxc4 {[%clk 0:00:23.5]} 30... bxc4 {[%clk 0:00:11.8]} 31. Rc2 {[%clk 0:00:22.7]} 31... Rd1+ {[%clk 0:00:10.6]} 32. Kg2 {[%clk 0:00:21.6]} 32... Rd8 {[%clk 0:00:08.2]} 33. Bc6 {[%clk 0:00:20.7]} 33... Rb8 {[%clk 0:00:07.3]} 34. Bd5 {[%clk 0:00:20]} 34... Rd8 {[%clk 0:00:06.3]} 35. Bxc4 {[%clk 0:00:19.2]} 35... Bc7 {[%clk 0:00:06]} 36. a4 {[%clk 0:00:18.1]} 36... Re8 {[%clk 0:00:05.7]} 37. Bb5 {[%clk 0:00:17.3]} 37... Rd8 {[%clk 0:00:05.4]} 38. a5 {[%clk 0:00:16.4]} 38... Rb8 {[%clk 0:00:05]} 39. Bc6 {[%clk 0:00:15.1]} 39... Bxa5 {[%clk 0:00:04.4]} 40. c4 {[%clk 0:00:13.8]} 40... Bc7 {[%clk 0:00:04]} 41. Bd5 {[%clk 0:00:13.4]} 41... Rc8 {[%clk 0:00:03.7]} 42. c6 {[%clk 0:00:13.4]} 42... Bd6 {[%clk 0:00:02.4]} 43. c5 {[%clk 0:00:12.7]} 43... Be7 {[%clk 0:00:02.1]} 44. Ba2 {[%clk 0:00:10.9]} 44... Bd8 {[%clk 0:00:01.8]} 45. c7 {[%clk 0:00:10.4]} 45... Bxc7 {[%clk 0:00:00.6]} 46. c6 {[%clk 0:00:10.4]} 46... Bb8 {[%clk 0:00:00.3]} 47. Re2 {[%clk 0:00:09.8]} 1-0

[Event "Live Chess"]
[Site "Chess.com"]
[Date "2010.12.06"]
[Round "-"]
[White "hipposcottimus"]
[Black "matijasec"]
[Result "1-0"]
[CurrentPosition "5rk1/1p4p1/5p1p/2p1nRb1/2PpP1N1/1q1P2QN/r5PP/5RK1 b - -"]
[Timezone "UTC"]
[ECO "B20"]
[ECOUrl "https://www.chess.com/openings/Sicilian-Defense"]
[UTCDate "2010.12.06"]
[UTCTime "19:45:28"]
[WhiteElo "1593"]
[BlackElo "1385"]
[TimeControl "60"]
[Termination "hipposcottimus won on time"]
[StartTime "19:45:28"]
[EndDate "2010.12.06"]
[EndTime "19:47:11"]
[Link "https://www.chess.com/game/live/74688736"]

1. e4 {[%clk 0:01:00]} 1... c5 {[%clk 0:01:00]} 2. Bb5 {[%clk 0:00:58.1]} 2... a6 {[%clk 0:00:58.3]} 3. Be2 {[%clk 0:00:57.4]} 3... Nc6 {[%clk 0:00:57.1]} 4. Nf3 {[%clk 0:00:57.2]} 4... e6 {[%clk 0:00:54.9]} 5. c4 {[%clk 0:00:56.9]} 5... Nf6 {[%clk 0:00:51.2]} 6. d3 {[%clk 0:00:56.5]} 6... Be7 {[%clk 0:00:50]} 7. Nc3 {[%clk 0:00:56.2]} 7... d5 {[%clk 0:00:48.9]} 8. O-O {[%clk 0:00:55.9]} 8... d4 {[%clk 0:00:47.6]} 9. Na4 {[%clk 0:00:52.9]} 9... e5 {[%clk 0:00:45.6]} 10. Bd2 {[%clk 0:00:50.7]} 10... O-O {[%clk 0:00:43.9]} 11. b3 {[%clk 0:00:49.5]} 11... Bd7 {[%clk 0:00:40.8]} 12. Nb2 {[%clk 0:00:49.2]} 12... a5 {[%clk 0:00:37.9]} 13. Ng5 {[%clk 0:00:48.9]} 13... h6 {[%clk 0:00:34.2]} 14. Nh3 {[%clk 0:00:46.6]} 14... Nh7 {[%clk 0:00:33.3]} 15. f4 {[%clk 0:00:45.1]} 15... exf4 {[%clk 0:00:31.9]} 16. Bxf4 {[%clk 0:00:43.6]} 16... Ng5 {[%clk 0:00:28.5]} 17. Bxg5 {[%clk 0:00:40.9]} 17... Bxg5 {[%clk 0:00:26.2]} 18. Bg4 {[%clk 0:00:40.1]} 18... Bxg4 {[%clk 0:00:24]} 19. Qxg4 {[%clk 0:00:39.7]} 19... Ne5 {[%clk 0:00:20.6]} 20. Qg3 {[%clk 0:00:38.1]} 20... f6 {[%clk 0:00:17.9]} 21. Rae1 {[%clk 0:00:37.6]} 21... a4 {[%clk 0:00:12.1]} 22. Rf5 {[%clk 0:00:37.1]} 22... axb3 {[%clk 0:00:10.2]} 23. axb3 {[%clk 0:00:36.8]} 23... Ra2 {[%clk 0:00:08.3]} 24. Nd1 {[%clk 0:00:35.8]} 24... Qa5 {[%clk 0:00:06.3]} 25. Ref1 {[%clk 0:00:31.9]} 25... Qc3 {[%clk 0:00:05]} 26. Ndf2 {[%clk 0:00:30.8]} 26... Qxb3 {[%clk 0:00:03.2]} 27. Ng4 {[%clk 0:00:28]} 1-0

[Event "Live Chess"]
[Site "Chess.com"]
[Date "2010.12.06"]
[Round "-"]
[White "hipposcottimus"]
[Black "mhaiel"]
[Result "1-0"]
[CurrentPosition "8/r2QR3/1pk5/p7/8/8/PPN4r/1K6 b - -"]
[Timezone "UTC"]
[ECO "B07"]
[ECOUrl "https://www.chess.com/openings/Pirc-Defense-Modern-Defense-Geller-System"]
[UTCDate "2010.12.06"]
[UTCTime "19:42:44"]
[WhiteElo "1589"]
[BlackElo "1394"]
[TimeControl "60"]
[Termination "hipposcottimus won on time"]
[StartTime "19:42:44"]
[EndDate "2010.12.06"]
[EndTime "19:44:49"]
[Link "https://www.chess.com/game/live/74688018"]

1. e4 {[%clk 0:01:00]} 1... d6 {[%clk 0:01:00]} 2. Nf3 {[%clk 0:00:59.6]} 2... a6 {[%clk 0:00:59.7]} 3. d4 {[%clk 0:00:59.2]} 3... h5 {[%clk 0:00:59.5]} 4. c4 {[%clk 0:00:58.5]} 4... g6 {[%clk 0:00:59.2]} 5. e5 {[%clk 0:00:57]} 5... Bg7 {[%clk 0:00:58.9]} 6. Bf4 {[%clk 0:00:54.7]} 6... dxe5 {[%clk 0:00:57.7]} 7. Nxe5 {[%clk 0:00:52.3]} 7... Nc6 {[%clk 0:00:57.4]} 8. Qe2 {[%clk 0:00:49.7]} 8... Nb4 {[%clk 0:00:56.2]} 9. Na3 {[%clk 0:00:46.8]} 9... b6 {[%clk 0:00:52.6]} 10. Qe4 {[%clk 0:00:45.5]} 10... Ra7 {[%clk 0:00:50]} 11. Be2 {[%clk 0:00:42.7]} 11... Bb7 {[%clk 0:00:48.9]} 12. Qe3 {[%clk 0:00:40.9]} 12... Bxg2 {[%clk 0:00:47.6]} 13. Rg1 {[%clk 0:00:38.5]} 13... Bb7 {[%clk 0:00:45.5]} 14. Bg5 {[%clk 0:00:37.3]} 14... Bxe5 {[%clk 0:00:43.9]} 15. Qxe5 {[%clk 0:00:35.5]} 15... f6 {[%clk 0:00:42.8]} 16. Bxf6 {[%clk 0:00:30.1]} 16... Nxf6 {[%clk 0:00:41.2]} 17. Rxg6 {[%clk 0:00:29.8]} 17... Rf8 {[%clk 0:00:37]} 18. Bxh5 {[%clk 0:00:26.5]} 18... Kd7 {[%clk 0:00:35.4]} 19. Bg4+ {[%clk 0:00:25.1]} 19... Nxg4 {[%clk 0:00:32.1]} 20. Rxg4 {[%clk 0:00:24.8]} 20... Kc8 {[%clk 0:00:30.9]} 21. O-O-O {[%clk 0:00:24.4]} 21... Kb8 {[%clk 0:00:29.8]} 22. Kb1 {[%clk 0:00:23.7]} 22... Rxf2 {[%clk 0:00:25.6]} 23. d5 {[%clk 0:00:22.5]} 23... Nc2 {[%clk 0:00:22.4]} 24. Nxc2 {[%clk 0:00:18.3]} 24... Bxd5 {[%clk 0:00:19.2]} 25. cxd5 {[%clk 0:00:17.1]} 25... a5 {[%clk 0:00:17.3]} 26. Rh4 {[%clk 0:00:16.4]} 26... e6 {[%clk 0:00:15.6]} 27. Rh8 {[%clk 0:00:16]} 27... Qc8 {[%clk 0:00:12.7]} 28. Rxc8+ {[%clk 0:00:14.8]} 28... Kxc8 {[%clk 0:00:12]} 29. Qxe6+ {[%clk 0:00:14.4]} 29... Kb7 {[%clk 0:00:10.7]} 30. d6 {[%clk 0:00:14.1]} 30... cxd6 {[%clk 0:00:09.4]} 31. Qxd6 {[%clk 0:00:13.8]} 31... Ka6 {[%clk 0:00:09.1]} 32. Qd3+ {[%clk 0:00:12.7]} 32... Kb7 {[%clk 0:00:07.4]} 33. Re1 {[%clk 0:00:12.3]} 33... Rxh2 {[%clk 0:00:05.2]} 34. Re7+ {[%clk 0:00:11.7]} 34... Kc6 {[%clk 0:00:01.2]} 35. Qd7+ {[%clk 0:00:11.3]} 1-0

[Event "Live Chess"]
[Site "Chess.com"]
[Date "2010.12.06"]
[Round "-"]
[White "hipposcottimus"]
[Black "Angelchess"]
[Result "1-0"]
[CurrentPosition "8/8/8/8/6Rk/5r2/PKP2P2/6R1 b - -"]
[Timezone "UTC"]
[ECO "B00"]
[ECOUrl "https://www.chess.com/openings/Nimzowitsch-Defense-Declined-2...d5"]
[UTCDate "2010.12.06"]
[UTCTime "19:38:53"]
[WhiteElo "1585"]
[BlackElo "1508"]
[TimeControl "60"]
[Termination "hipposcottimus won on time"]
[StartTime "19:38:53"]
[EndDate "2010.12.06"]
[EndTime "19:40:49"]
[Link "https://www.chess.com/game/live/74686738"]

1. e4 {[%clk 0:01:00]} 1... Nc6 {[%clk 0:01:00]} 2. Nf3 {[%clk 0:00:59.6]} 2... d5 {[%clk 0:01:00]} 3. d4 {[%clk 0:00:59.3]} 3... dxe4 {[%clk 0:00:58.8]} 4. d5 {[%clk 0:00:57.3]} 4... exf3 {[%clk 0:00:55.6]} 5. dxc6 {[%clk 0:00:56.4]} 5... Qxd1+ {[%clk 0:00:52.6]} 6. Kxd1 {[%clk 0:00:55.6]} 6... bxc6 {[%clk 0:00:51.6]} 7. Bd2 {[%clk 0:00:54]} 7... a5 {[%clk 0:00:50.5]} 8. gxf3 {[%clk 0:00:53.2]} 8... Nf6 {[%clk 0:00:49.9]} 9. Nc3 {[%clk 0:00:52.8]} 9... e5 {[%clk 0:00:49.1]} 10. Be3 {[%clk 0:00:52.4]} 10... c5 {[%clk 0:00:47.4]} 11. Bd3 {[%clk 0:00:52]} 11... Bd6 {[%clk 0:00:45]} 12. Kd2 {[%clk 0:00:51.6]} 12... O-O {[%clk 0:00:43.8]} 13. Rad1 {[%clk 0:00:51.3]} 13... Ba6 {[%clk 0:00:41.2]} 14. Kc1 {[%clk 0:00:50.3]} 14... Bxd3 {[%clk 0:00:39.9]} 15. Rxd3 {[%clk 0:00:50]} 15... c4 {[%clk 0:00:39]} 16. Rd2 {[%clk 0:00:47.9]} 16... Bb4 {[%clk 0:00:38.1]} 17. Bg5 {[%clk 0:00:41.3]} 17... Bxc3 {[%clk 0:00:35.8]} 18. bxc3 {[%clk 0:00:41.1]} 18... Nh5 {[%clk 0:00:31.3]} 19. Rg1 {[%clk 0:00:40.3]} 19... f6 {[%clk 0:00:30]} 20. Bh6 {[%clk 0:00:38.8]} 20... g6 {[%clk 0:00:27.7]} 21. Bxf8 {[%clk 0:00:37.6]} 21... Rxf8 {[%clk 0:00:26.8]} 22. Rd7 {[%clk 0:00:36.6]} 22... c6 {[%clk 0:00:22.2]} 23. Rd6 {[%clk 0:00:35.5]} 23... f5 {[%clk 0:00:20.8]} 24. Rxc6 {[%clk 0:00:34.4]} 24... e4 {[%clk 0:00:20]} 25. fxe4 {[%clk 0:00:33.4]} 25... fxe4 {[%clk 0:00:19.1]} 26. Rf1 {[%clk 0:00:32.9]} 26... Rf3 {[%clk 0:00:17.8]} 27. Rc5 {[%clk 0:00:31.4]} 27... Nf4 {[%clk 0:00:16.7]} 28. Rxa5 {[%clk 0:00:30.2]} 28... Ne2+ {[%clk 0:00:15.7]} 29. Kb2 {[%clk 0:00:29.8]} 29... Rxc3 {[%clk 0:00:14.1]} 30. Ra4 {[%clk 0:00:28.9]} 30... Rf3 {[%clk 0:00:09.2]} 31. Rxc4 {[%clk 0:00:28.3]} 31... Kg7 {[%clk 0:00:08.3]} 32. Rxe4 {[%clk 0:00:27.4]} 32... g5 {[%clk 0:00:05]} 33. Rxe2 {[%clk 0:00:26.5]} 33... g4 {[%clk 0:00:03.6]} 34. Re7+ {[%clk 0:00:26.1]} 34... Kg6 {[%clk 0:00:03.6]} 35. Rg1 {[%clk 0:00:25.5]} 35... h5 {[%clk 0:00:02.9]} 36. h3 {[%clk 0:00:24.5]} 36... Kg5 {[%clk 0:00:02.4]} 37. hxg4 {[%clk 0:00:23.3]} 37... hxg4 {[%clk 0:00:02]} 38. Rg7+ {[%clk 0:00:23]} 38... Kh4 {[%clk 0:00:01.5]} 39. R7xg4+ {[%clk 0:00:22.7]} 1-0

[Event "Live Chess"]
[Site "Chess.com"]
[Date "2010.12.06"]
[Round "-"]
[White "Angelchess"]
[Black "hipposcottimus"]
[Result "0-1"]
[CurrentPosition "6k1/6p1/7p/4B3/8/7Q/6P1/6K1 w - -"]
[Timezone "UTC"]
[ECO "D11"]
[ECOUrl "https://www.chess.com/openings/Slav-Defense-Modern-Line"]
[UTCDate "2010.12.06"]
[UTCTime "19:35:11"]
[WhiteElo "1515"]
[BlackElo "1578"]
[TimeControl "60"]
[Termination "hipposcottimus won on time"]
[StartTime "19:35:11"]
[EndDate "2010.12.06"]
[EndTime "19:37:25"]
[Link "https://www.chess.com/game/live/74685840"]

1. d4 {[%clk 0:01:00]} 1... d5 {[%clk 0:01:00]} 2. c4 {[%clk 0:01:00]} 2... c6 {[%clk 0:00:59.4]} 3. Nf3 {[%clk 0:00:58.8]} 3... Nd7 {[%clk 0:00:57.9]} 4. Nc3 {[%clk 0:00:58.8]} 4... e6 {[%clk 0:00:57.5]} 5. a4 {[%clk 0:00:58.6]} 5... Ngf6 {[%clk 0:00:57.2]} 6. e4 {[%clk 0:00:57.8]} 6... Bd6 {[%clk 0:00:56.2]} 7. e5 {[%clk 0:00:56.9]} 7... O-O {[%clk 0:00:53.9]} 8. exd6 {[%clk 0:00:55.4]} 8... Nb6 {[%clk 0:00:50.2]} 9. c5 {[%clk 0:00:53.4]} 9... Nc4 {[%clk 0:00:48]} 10. Bxc4 {[%clk 0:00:50.7]} 10... dxc4 {[%clk 0:00:46.5]} 11. b3 {[%clk 0:00:50.2]} 11... Nd5 {[%clk 0:00:45.3]} 12. bxc4 {[%clk 0:00:48.7]} 12... Nxc3 {[%clk 0:00:44.1]} 13. Qc2 {[%clk 0:00:47.9]} 13... Nxa4 {[%clk 0:00:33.7]} 14. Qxa4 {[%clk 0:00:45]} 14... Bd7 {[%clk 0:00:32.7]} 15. Qc2 {[%clk 0:00:43.9]} 15... b5 {[%clk 0:00:32.3]} 16. cxb6 {[%clk 0:00:42.3]} 16... axb6 {[%clk 0:00:32]} 17. c5 {[%clk 0:00:41.5]} 17... Rxa1 {[%clk 0:00:30.5]} 18. cxb6 {[%clk 0:00:39.9]} 18... Ra8 {[%clk 0:00:30.2]} 19. O-O {[%clk 0:00:36.5]} 19... Rb8 {[%clk 0:00:29.4]} 20. Bg5 {[%clk 0:00:31.5]} 20... Qc8 {[%clk 0:00:26.8]} 21. Ne5 {[%clk 0:00:29.7]} 21... f6 {[%clk 0:00:25.8]} 22. Nxd7 {[%clk 0:00:28.3]} 22... Qxd7 {[%clk 0:00:25.5]} 23. Bf4 {[%clk 0:00:25.3]} 23... Rxb6 {[%clk 0:00:24.7]} 24. d5 {[%clk 0:00:24]} 24... Rbb8 {[%clk 0:00:24.3]} 25. dxc6 {[%clk 0:00:22.6]} 25... Qa7 {[%clk 0:00:21.9]} 26. c7 {[%clk 0:00:21.4]} 26... Rbc8 {[%clk 0:00:21.2]} 27. Rc1 {[%clk 0:00:18.7]} 27... Ra8 {[%clk 0:00:17.1]} 28. d7 {[%clk 0:00:17.5]} 28... Qa1 {[%clk 0:00:13.8]} 29. c8=Q {[%clk 0:00:11.9]} 29... Qxc1+ {[%clk 0:00:12.6]} 30. Qxc1 {[%clk 0:00:10.4]} 30... Rfxc8 {[%clk 0:00:12]} 31. dxc8=Q+ {[%clk 0:00:09.1]} 31... Rxc8 {[%clk 0:00:11.5]} 32. Qxc8+ {[%clk 0:00:07.9]} 32... Kf7 {[%clk 0:00:11.2]} 33. Qd7+ {[%clk 0:00:07.1]} 33... Kg6 {[%clk 0:00:10.9]} 34. h4 {[%clk 0:00:04.1]} 34... e5 {[%clk 0:00:10.4]} 35. h5+ {[%clk 0:00:03.2]} 35... Kxh5 {[%clk 0:00:09.7]} 36. Qh3+ {[%clk 0:00:01.7]} 36... Kg6 {[%clk 0:00:08.6]} 37. Bg3 {[%clk 0:00:01.7]} 37... Kf7 {[%clk 0:00:07.9]} 38. f4 {[%clk 0:00:01.7]} 38... h6 {[%clk 0:00:05.8]} 39. fxe5 {[%clk 0:00:01.7]} 39... fxe5 {[%clk 0:00:05.4]} 40. Bxe5 {[%clk 0:00:01.1]} 40... Kg8 {[%clk 0:00:05.2]} 0-1

[Event "Live Chess"]
[Site "Chess.com"]
[Date "2010.12.06"]
[Round "-"]
[White "hipposcottimus"]
[Black "Angelchess"]
[Result "0-1"]
[CurrentPosition "2k5/1p6/2p1p3/4Pp2/2P4p/8/q5PP/5QK1 w - -"]
[Timezone "UTC"]
[ECO "B00"]
[ECOUrl "https://www.chess.com/openings/Nimzowitsch-Defense-Declined-2...d5"]
[UTCDate "2010.12.06"]
[UTCTime "19:32:31"]
[WhiteElo "1571"]
[BlackElo "1522"]
[TimeControl "60"]
[Termination "Angelchess won on time"]
[StartTime "19:32:31"]
[EndDate "2010.12.06"]
[EndTime "19:34:39"]
[Link "https://www.chess.com/game/live/74685177"]

1. e4 {[%clk 0:01:00]} 1... Nc6 {[%clk 0:01:00]} 2. Nf3 {[%clk 0:00:59.5]} 2... d5 {[%clk 0:00:59.5]} 3. e5 {[%clk 0:00:57.8]} 3... d4 {[%clk 0:00:59.5]} 4. c3 {[%clk 0:00:56.2]} 4... e6 {[%clk 0:00:59.1]} 5. cxd4 {[%clk 0:00:55]} 5... Nxd4 {[%clk 0:00:58.1]} 6. Nc3 {[%clk 0:00:53.2]} 6... Nxf3+ {[%clk 0:00:56.2]} 7. Qxf3 {[%clk 0:00:51.4]} 7... c6 {[%clk 0:00:55.3]} 8. d3 {[%clk 0:00:49.3]} 8... Ne7 {[%clk 0:00:54.6]} 9. Be3 {[%clk 0:00:48.2]} 9... Nf5 {[%clk 0:00:53.3]} 10. d4 {[%clk 0:00:47.2]} 10... Nxe3 {[%clk 0:00:51.5]} 11. Qxe3 {[%clk 0:00:46.9]} 11... Bb4 {[%clk 0:00:50.6]} 12. Be2 {[%clk 0:00:44.5]} 12... Bxc3+ {[%clk 0:00:49.5]} 13. Qxc3 {[%clk 0:00:44.2]} 13... Bd7 {[%clk 0:00:48]} 14. O-O {[%clk 0:00:43.7]} 14... Qb6 {[%clk 0:00:47.1]} 15. Qe3 {[%clk 0:00:42.9]} 15... O-O-O {[%clk 0:00:46.5]} 16. b3 {[%clk 0:00:41.9]} 16... g6 {[%clk 0:00:45.6]} 17. f4 {[%clk 0:00:41.2]} 17... h5 {[%clk 0:00:44]} 18. f5 {[%clk 0:00:39.9]} 18... gxf5 {[%clk 0:00:41.8]} 19. Qf4 {[%clk 0:00:39.4]} 19... Rhg8 {[%clk 0:00:40.2]} 20. Rac1 {[%clk 0:00:36.7]} 20... Qb4 {[%clk 0:00:34.2]} 21. Rc4 {[%clk 0:00:30.9]} 21... Qf8 {[%clk 0:00:32.2]} 22. Bf3 {[%clk 0:00:26.6]} 22... h4 {[%clk 0:00:30.2]} 23. d5 {[%clk 0:00:25.5]} 23... exd5 {[%clk 0:00:28.4]} 24. Bxd5 {[%clk 0:00:23.8]} 24... Be6 {[%clk 0:00:23.2]} 25. Bxe6+ {[%clk 0:00:16.5]} 25... fxe6 {[%clk 0:00:21.6]} 26. Rf3 {[%clk 0:00:14.1]} 26... Rg4 {[%clk 0:00:20.1]} 27. Qe3 {[%clk 0:00:12.2]} 27... Rxc4 {[%clk 0:00:18.2]} 28. bxc4 {[%clk 0:00:12]} 28... Qb4 {[%clk 0:00:16.5]} 29. Qxa7 {[%clk 0:00:10.7]} 29... Qb1+ {[%clk 0:00:14.3]} 30. Rf1 {[%clk 0:00:09.6]} 30... Rd1 {[%clk 0:00:12.5]} 31. Qf2 {[%clk 0:00:00.8]} 31... Rxf1+ {[%clk 0:00:09.9]} 32. Qxf1 {[%clk 0:00:00.5]} 32... Qxa2 {[%clk 0:00:08.4]} 0-1

[Event "Live Chess"]
[Site "Chess.com"]
[Date "2010.12.06"]
[Round "-"]
[White "cool1000"]
[Black "hipposcottimus"]
[Result "0-1"]
[CurrentPosition "6k1/ppp3pp/8/3qp3/8/5bP1/P3n2P/R6K w - -"]
[Timezone "UTC"]
[ECO "C24"]
[ECOUrl "https://www.chess.com/openings/Bishops-Opening-Berlin-Defense"]
[UTCDate "2010.12.06"]
[UTCTime "19:30:04"]
[WhiteElo "1511"]
[BlackElo "1580"]
[TimeControl "60"]
[Termination "hipposcottimus won by checkmate"]
[StartTime "19:30:04"]
[EndDate "2010.12.06"]
[EndTime "19:32:00"]
[Link "https://www.chess.com/game/live/74684423"]

1. e4 {[%clk 0:01:00]} 1... e5 {[%clk 0:01:00]} 2. Bc4 {[%clk 0:01:00]} 2... Nf6 {[%clk 0:00:58.4]} 3. Bxf7+ {[%clk 0:01:00]} 3... Kxf7 {[%clk 0:00:57.1]} 4. d3 {[%clk 0:01:00]} 4... Bc5 {[%clk 0:00:56.7]} 5. c3 {[%clk 0:01:00]} 5... Re8 {[%clk 0:00:56.1]} 6. Nf3 {[%clk 0:01:00]} 6... Kg8 {[%clk 0:00:54.6]} 7. Ng5 {[%clk 0:00:58.4]} 7... d5 {[%clk 0:00:50.4]} 8. exd5 {[%clk 0:00:53.1]} 8... Nxd5 {[%clk 0:00:50.1]} 9. c4 {[%clk 0:00:49.7]} 9... Nf4 {[%clk 0:00:49.1]} 10. b4 {[%clk 0:00:48.1]} 10... Bxf2+ {[%clk 0:00:44.4]} 11. Kxf2 {[%clk 0:00:45.6]} 11... Qxg5 {[%clk 0:00:44.1]} 12. Qf3 {[%clk 0:00:40.2]} 12... Rf8 {[%clk 0:00:39.3]} 13. Bxf4 {[%clk 0:00:38.8]} 13... Rxf4 {[%clk 0:00:37.4]} 14. Qxf4 {[%clk 0:00:38.2]} 14... Qxf4+ {[%clk 0:00:37]} 15. Ke2 {[%clk 0:00:35.8]} 15... Bg4+ {[%clk 0:00:36.7]} 16. Ke1 {[%clk 0:00:33.1]} 16... Nc6 {[%clk 0:00:36.4]} 17. Rf1 {[%clk 0:00:31.9]} 17... Qc1+ {[%clk 0:00:33.3]} 18. Kf2 {[%clk 0:00:30.6]} 18... Qc2+ {[%clk 0:00:32.8]} 19. Kg1 {[%clk 0:00:29.4]} 19... Nd4 {[%clk 0:00:31.6]} 20. Na3 {[%clk 0:00:27.2]} 20... Ne2+ {[%clk 0:00:31.1]} 21. Kh1 {[%clk 0:00:25]} 21... Qxd3 {[%clk 0:00:30.8]} 22. Nb5 {[%clk 0:00:22.2]} 22... Qxc4 {[%clk 0:00:29.4]} 23. Na3 {[%clk 0:00:18]} 23... Qxb4 {[%clk 0:00:26.8]} 24. Nc2 {[%clk 0:00:16.2]} 24... Qe7 {[%clk 0:00:25.4]} 25. Ne3 {[%clk 0:00:15]} 25... Bh5 {[%clk 0:00:22.1]} 26. g3 {[%clk 0:00:13]} 26... Rf8 {[%clk 0:00:20.3]} 27. Nf5 {[%clk 0:00:11]} 27... Rxf5 {[%clk 0:00:18.6]} 28. Rxf5 {[%clk 0:00:09.7]} 28... Qe6 {[%clk 0:00:18.3]} 29. Rf2 {[%clk 0:00:06.9]} 29... Qd5+ {[%clk 0:00:17.8]} 30. Rf3 {[%clk 0:00:02.1]} 30... Bxf3# {[%clk 0:00:17.2]} 0-1